[Event "December 12 Late 2023"]
[Site "https://www.chess.com"]
[Date "2023.12.12"]
[Round "11"]
[White "Martinez Ramirez, Lennis"]
[Black "Indjic, Aleksandar"]
[Result "1-0"]
[Board "19"]
[TimeControl "180+1"]
[WhiteFideId "3509079"]
[BlackFideId "911925"]
[WhiteElo "2729"]
[BlackElo "2894"]
[WhiteTeam "CUB"]
[BlackTeam "SRB"]
[WhiteClock "0:00:09"]
[BlackClock "0:00:28"]

1. Nf3 {[%clk 0:03:00]}  d5 {[%clk 0:02:52]} 2. g3 {[%clk 0:03:01]}  Bg4 {[%clk 0:02:52]} 3. Bg2 {[%clk 0:03:01]}  e6 {[%clk 0:02:50]} 4. c4 {[%clk 0:03:00]}  c6 {[%clk 0:02:46]} 5. Ne5 {[%clk 0:02:58]}  Bf5 {[%clk 0:02:44]} 6. cxd5 {[%clk 0:02:57]}  exd5 {[%clk 0:02:42]} 7. O-O {[%clk 0:02:46]}  Bd6 {[%clk 0:02:41]} 8. Nf3 {[%clk 0:02:29]}  Nf6 {[%clk 0:02:40]} 9. d3 {[%clk 0:02:29]}  O-O {[%clk 0:02:39]} 10. Nc3 {[%clk 0:02:28]}  Re8 {[%clk 0:02:39]} 11. Nd4 {[%clk 0:02:26]}  Bg4 {[%clk 0:02:35]} 12. h3 {[%clk 0:02:26]}  Bh5 {[%clk 0:02:31]} 13. g4 {[%clk 0:02:26]}  Bxg4 {[%clk 0:02:27]} 14. hxg4 {[%clk 0:02:24]}  Nxg4 {[%clk 0:02:27]} 15. Nf5 {[%clk 0:01:45]}  Bh2+ {[%clk 0:02:26]} 16. Kh1 {[%clk 0:01:44]}  g6 {[%clk 0:02:27]} 17. Nh6+ {[%clk 0:01:39]}  Nxh6 {[%clk 0:02:25]} 18. Kxh2 {[%clk 0:01:39]}  Ng4+ {[%clk 0:02:23]} 19. Kg1 {[%clk 0:01:40]}  Qc7 {[%clk 0:02:11]} 20. f4 {[%clk 0:01:39]}  Qb6+ {[%clk 0:01:57]} 21. d4 {[%clk 0:01:37]}  f5 {[%clk 0:01:56]} 22. e4 {[%clk 0:01:29]}  dxe4 {[%clk 0:01:55]} 23. Nxe4 {[%clk 0:01:19]}  Nd7 {[%clk 0:01:56]} 24. Nc3 {[%clk 0:01:18]}  Ndf6 {[%clk 0:01:55]} 25. Qb3+ {[%clk 0:01:18]}  Kg7 {[%clk 0:01:38]} 26. Qxb6 {[%clk 0:01:17]}  axb6 {[%clk 0:01:39]} 27. d5 {[%clk 0:01:17]}  c5 {[%clk 0:01:39]} 28. d6 {[%clk 0:00:57]}  Rad8 {[%clk 0:01:38]} 29. Rd1 {[%clk 0:00:57]}  Ne4 {[%clk 0:01:37]} 30. Nxe4 {[%clk 0:00:52]}  fxe4 {[%clk 0:01:38]} 31. Bh3 {[%clk 0:00:44]}  h5 {[%clk 0:01:24]} 32. Bxg4 {[%clk 0:00:44]}  hxg4 {[%clk 0:01:25]} 33. Be3 {[%clk 0:00:33]}  Re6 {[%clk 0:01:23]} 34. Rd2 {[%clk 0:00:32]}  Rexd6 {[%clk 0:01:23]} 35. Rad1 {[%clk 0:00:32]}  Rd3 {[%clk 0:01:22]} 36. Rxd3 {[%clk 0:00:30]}  exd3 {[%clk 0:01:23]} 37. Kf2 {[%clk 0:00:21]}  Kf6 {[%clk 0:01:23]} 38. Bd2 {[%clk 0:00:14]}  Kf5 {[%clk 0:01:23]} 39. Re1 {[%clk 0:00:14]}  Kf6 {[%clk 0:00:56]} 40. Kg3 {[%clk 0:00:14]}  Kf7 {[%clk 0:00:47]} 41. Kxg4 {[%clk 0:00:14]}  Rh8 {[%clk 0:00:48]} 42. Re3 {[%clk 0:00:13]}  c4 {[%clk 0:00:47]} 43. Rh3 {[%clk 0:00:11]}  Re8 {[%clk 0:00:44]} 44. Rh2 {[%clk 0:00:12]}  Re4 {[%clk 0:00:42]} 45. Kf3 {[%clk 0:00:11]}  Re6 {[%clk 0:00:34]} 46. Rh7+ {[%clk 0:00:11]}  Ke8 {[%clk 0:00:35]} 47. Rxb7 {[%clk 0:00:12]}  Re2 {[%clk 0:00:34]} 48. Bc3 {[%clk 0:00:12]}  Re6 {[%clk 0:00:32]} 49. Rc7 {[%clk 0:00:10]}  b5 {[%clk 0:00:30]} 50. Rc5 {[%clk 0:00:10]}  Rd6 {[%clk 0:00:31]} 51. Ke3 {[%clk 0:00:09]}  Re6+ {[%clk 0:00:30]} 52. Re5 {[%clk 0:00:09]}  Rxe5+ {[%clk 0:00:31]} 53. Bxe5 {[%clk 0:00:09]}  Kd7 {[%clk 0:00:31]} 54. Bc3 {[%clk 0:00:09]}  Ke6 {[%clk 0:00:31]} 55. Ke4 {[%clk 0:00:09]}  Kd6 {[%clk 0:00:32]} 56. a3 {[%clk 0:00:09]}  Ke6 {[%clk 0:00:32]} 57. Bb4 {[%clk 0:00:09]}  Kf6 {[%clk 0:00:31]} 58. Bd2 {[%clk 0:00:09]}  Ke6 {[%clk 0:00:32]} 59. Kd4 {[%clk 0:00:09]}  Kd6 {[%clk 0:00:32]} 60. a4 {[%clk 0:00:09]}  bxa4 {[%clk 0:00:28]} 61. Kxc4 {[%clk 0:00:09]} 1-0

[Event "December 12 Late 2023"]
[Site "https://www.chess.com"]
[Date "2023.12.12"]
[Round "11"]
[White "Piesik, Piotr"]
[Black "Shuvalova, Polina"]
[Result "0-1"]
[Board "22"]
[TimeControl "180+1"]
[WhiteFideId "1136194"]
[BlackFideId "24171760"]
[WhiteElo "2664"]
[BlackElo "2739"]
[WhiteTeam "CZE"]
[BlackTeam "RUS"]
[WhiteClock "0:00:00"]
[BlackClock "0:00:30"]

1. Nf3 {[%clk 0:02:52]}  d5 {[%clk 0:02:58]} 2. g3 {[%clk 0:02:52]}  e6 {[%clk 0:02:52]} 3. Bg2 {[%clk 0:02:52]}  Nf6 {[%clk 0:02:53]} 4. O-O {[%clk 0:02:52]}  Be7 {[%clk 0:02:11]} 5. d3 {[%clk 0:02:52]}  O-O {[%clk 0:02:10]} 6. Nbd2 {[%clk 0:02:52]}  b6 {[%clk 0:02:08]} 7. e4 {[%clk 0:02:52]}  dxe4 {[%clk 0:02:09]} 8. dxe4 {[%clk 0:02:52]}  Bb7 {[%clk 0:02:10]} 9. Qe2 {[%clk 0:02:52]}  c5 {[%clk 0:02:11]} 10. Rd1 {[%clk 0:02:47]}  Qc7 {[%clk 0:02:10]} 11. c3 {[%clk 0:02:42]}  Nc6 {[%clk 0:02:09]} 12. Nf1 {[%clk 0:02:41]}  h6 {[%clk 0:02:09]} 13. Bf4 {[%clk 0:02:39]}  e5 {[%clk 0:02:06]} 14. Bd2 {[%clk 0:02:39]}  a5 {[%clk 0:02:02]} 15. Nh4 {[%clk 0:02:36]}  Rad8 {[%clk 0:01:50]} 16. Nf5 {[%clk 0:02:33]}  Rfe8 {[%clk 0:01:49]} 17. N1e3 {[%clk 0:02:15]}  Bf8 {[%clk 0:01:48]} 18. Nd5 {[%clk 0:02:10]}  Nxd5 {[%clk 0:01:39]} 19. exd5 {[%clk 0:02:11]}  Nb8 {[%clk 0:01:35]} 20. Qg4 {[%clk 0:02:08]}  Kh8 {[%clk 0:01:30]} 21. c4 {[%clk 0:01:39]}  Bc8 {[%clk 0:01:24]} 22. Qe4 {[%clk 0:01:24]}  Nd7 {[%clk 0:01:23]} 23. d6 {[%clk 0:01:06]}  Qb8 {[%clk 0:01:17]} 24. Ne7 {[%clk 0:00:45]}  Nf6 {[%clk 0:01:04]} 25. Qxe5 {[%clk 0:00:13]}  Bxe7 {[%clk 0:01:04]} 26. Bxh6 {[%clk 0:00:06]}  Rxd6 {[%clk 0:00:54]} 27. Bxg7+ {[%clk 0:00:05]}  Kxg7 {[%clk 0:00:54]} 28. Qg5+ {[%clk 0:00:05]}  Kh8 {[%clk 0:00:46]} 29. Re1 {[%clk 0:00:04]}  Re6 {[%clk 0:00:41]} 30. Rxe6 {[%clk 0:00:02]}  Bxe6 {[%clk 0:00:41]} 31. Qh6+ {[%clk 0:00:02]}  Nh7 {[%clk 0:00:41]} 32. Be4 {[%clk 0:00:02]}  f5 {[%clk 0:00:36]} 33. Bc6 {[%clk 0:00:02]}  Bf8 {[%clk 0:00:33]} 34. Qg6 {[%clk 0:00:00]}  Re7 {[%clk 0:00:30]} 0-1

[Event "December 12 Late 2023"]
[Site "https://www.chess.com"]
[Date "2023.12.12"]
[Round "11"]
[White "Hong, Andrew"]
[Black "Vlassov, Nikolai"]
[Result "1-0"]
[Board "25"]
[TimeControl "180+1"]
[WhiteFideId "2099438"]
[BlackFideId "4103360"]
[WhiteElo "2806"]
[BlackElo "2622"]
[WhiteTeam "USA"]
[BlackTeam "FID"]
[WhiteClock "0:02:19"]
[BlackClock "0:00:00"]

1. Nf3 {[%clk 0:03:00]}  c5 {[%clk 0:02:58]} 2. c4 {[%clk 0:03:00]}  g6 {[%clk 0:02:58]} 3. d4 {[%clk 0:02:59]}  Bg7 {[%clk 0:02:58]} 4. d5 {[%clk 0:02:56]}  f5 {[%clk 0:02:55]} 5. Nc3 {[%clk 0:02:53]}  Nf6 {[%clk 0:02:54]} 6. Bg5 {[%clk 0:02:48]}  O-O {[%clk 0:02:52]} 7. Qc2 {[%clk 0:02:46]}  h6 {[%clk 0:02:38]} 8. Bxf6 {[%clk 0:02:46]}  Bxf6 {[%clk 0:02:39]} 9. e4 {[%clk 0:02:47]}  Bxc3+ {[%clk 0:02:27]} 10. Qxc3 {[%clk 0:02:45]}  fxe4 {[%clk 0:02:25]} 11. Nd2 {[%clk 0:02:44]}  d6 {[%clk 0:02:06]} 12. Nxe4 {[%clk 0:02:44]}  b5 {[%clk 0:01:49]} 13. b3 {[%clk 0:02:28]}  bxc4 {[%clk 0:01:41]} 14. bxc4 {[%clk 0:02:29]}  Nd7 {[%clk 0:01:38]} 15. Be2 {[%clk 0:02:26]}  Rb8 {[%clk 0:01:30]} 16. O-O {[%clk 0:02:24]}  Nf6 {[%clk 0:01:21]} 17. Qg3 {[%clk 0:02:17]}  Kg7 {[%clk 0:01:14]} 18. Nxc5 {[%clk 0:02:17]}  Rb2 {[%clk 0:00:55]} 19. Bd3 {[%clk 0:02:17]}  dxc5 {[%clk 0:00:44]} 20. Qxg6+ {[%clk 0:02:17]}  Kh8 {[%clk 0:00:44]} 21. Qxh6+ {[%clk 0:02:18]}  Kg8 {[%clk 0:00:44]} 22. Qg6+ {[%clk 0:02:19]}  Kh8 {[%clk 0:00:44]} 23. Rae1 {[%clk 0:02:20]}  Qe8 {[%clk 0:00:17]} 24. Qh6+ {[%clk 0:02:19]}  Kg8 {[%clk 0:00:00]} 25. Re5 {[%clk 0:02:19]} 1-0

[Event "December 12 Late 2023"]
[Site "https://www.chess.com"]
[Date "2023.12.12"]
[Round "11"]
[White "Janaszak, Dawid"]
[Black "Matinian, Nikita"]
[Result "1/2-1/2"]
[Board "27"]
[TimeControl "180+1"]
[WhiteFideId "1119206"]
[BlackFideId "24129100"]
[WhiteElo "2611"]
[BlackElo "2759"]
[WhiteTeam "POL"]
[BlackTeam "FID"]
[WhiteClock "0:00:05"]
[BlackClock "0:00:06"]

1. e4 {[%clk 0:03:00]}  c5 {[%clk 0:02:59]} 2. Nc3 {[%clk 0:03:01]}  Nc6 {[%clk 0:02:59]} 3. Bb5 {[%clk 0:03:00]}  Nd4 {[%clk 0:02:59]} 4. Nf3 {[%clk 0:03:00]}  a6 {[%clk 0:02:59]} 5. Bd3 {[%clk 0:03:00]}  g6 {[%clk 0:02:56]} 6. b4 {[%clk 0:03:00]}  Nxf3+ {[%clk 0:02:53]} 7. Qxf3 {[%clk 0:03:01]}  cxb4 {[%clk 0:02:54]} 8. Nd5 {[%clk 0:03:01]}  Bg7 {[%clk 0:02:53]} 9. Rb1 {[%clk 0:03:00]}  Nf6 {[%clk 0:02:52]} 10. Bb2 {[%clk 0:02:55]}  a5 {[%clk 0:02:48]} 11. h4 {[%clk 0:02:47]}  h5 {[%clk 0:02:44]} 12. Bd4 {[%clk 0:02:34]}  Ra6 {[%clk 0:02:43]} 13. Bxa6 {[%clk 0:02:32]}  O-O {[%clk 0:02:26]} 14. Bd3 {[%clk 0:02:11]}  Ng4 {[%clk 0:02:26]} 15. Bxg7 {[%clk 0:02:09]}  Kxg7 {[%clk 0:02:27]} 16. Qg3 {[%clk 0:02:04]}  d6 {[%clk 0:02:24]} 17. O-O {[%clk 0:01:56]}  e6 {[%clk 0:02:21]} 18. Ne3 {[%clk 0:01:56]}  Nf6 {[%clk 0:01:59]} 19. e5 {[%clk 0:01:55]}  dxe5 {[%clk 0:01:53]} 20. Qxe5 {[%clk 0:01:56]}  b6 {[%clk 0:01:50]} 21. f3 {[%clk 0:01:36]}  Kg8 {[%clk 0:01:42]} 22. Rfd1 {[%clk 0:01:27]}  Nd7 {[%clk 0:01:42]} 23. Qg3 {[%clk 0:01:24]}  Nc5 {[%clk 0:01:42]} 24. Bf1 {[%clk 0:01:18]}  Bb7 {[%clk 0:01:21]} 25. c3 {[%clk 0:01:18]}  bxc3 {[%clk 0:01:11]} 26. dxc3 {[%clk 0:01:17]}  Qf6 {[%clk 0:01:12]} 27. Nc4 {[%clk 0:01:06]}  Qxc3 {[%clk 0:01:09]} 28. Qe5 {[%clk 0:01:04]}  Qc2 {[%clk 0:01:00]} 29. Rdc1 {[%clk 0:00:42]}  Qxa2 {[%clk 0:00:55]} 30. Rxb6 {[%clk 0:00:41]}  Bd5 {[%clk 0:00:54]} 31. Ne3 {[%clk 0:00:37]}  Nd7 {[%clk 0:00:48]} 32. Qb2 {[%clk 0:00:33]}  Nxb6 {[%clk 0:00:48]} 33. Qxb6 {[%clk 0:00:32]}  a4 {[%clk 0:00:46]} 34. Nxd5 {[%clk 0:00:32]}  Qxd5 {[%clk 0:00:47]} 35. Qc5 {[%clk 0:00:28]}  Qd8 {[%clk 0:00:38]} 36. Ra1 {[%clk 0:00:28]}  Qxh4 {[%clk 0:00:37]} 37. Qa7 {[%clk 0:00:25]}  Rd8 {[%clk 0:00:31]} 38. Rxa4 {[%clk 0:00:25]}  Qf6 {[%clk 0:00:25]} 39. Qf2 {[%clk 0:00:24]}  Rd1 {[%clk 0:00:24]} 40. Re4 {[%clk 0:00:22]}  Qc3 {[%clk 0:00:23]} 41. Kh2 {[%clk 0:00:16]}  Qc7+ {[%clk 0:00:21]} 42. g3 {[%clk 0:00:14]}  Qc3 {[%clk 0:00:14]} 43. Bg2 {[%clk 0:00:13]}  Qc1 {[%clk 0:00:11]} 44. Re2 {[%clk 0:00:12]}  Qc7 {[%clk 0:00:09]} 45. Rc2 {[%clk 0:00:11]}  Qd6 {[%clk 0:00:08]} 46. f4 {[%clk 0:00:10]}  Rd4 {[%clk 0:00:07]} 47. Re2 {[%clk 0:00:09]}  h4 {[%clk 0:00:07]} 48. Re4 {[%clk 0:00:08]}  hxg3+ {[%clk 0:00:07]} 49. Kxg3 {[%clk 0:00:07]}  Rd3+ {[%clk 0:00:07]} 50. Kh2 {[%clk 0:00:08]}  Rd2 {[%clk 0:00:05]} 51. Qg3 {[%clk 0:00:07]}  Qc6 {[%clk 0:00:04]} 52. Re5 {[%clk 0:00:06]}  Qc2 {[%clk 0:00:03]} 53. Rg5 {[%clk 0:00:05]}  Kg7 {[%clk 0:00:03]} 54. Qf3 {[%clk 0:00:05]}  Qb2 {[%clk 0:00:03]} 55. Rg3 {[%clk 0:00:05]}  Rf2 {[%clk 0:00:03]} 56. Qe3 {[%clk 0:00:05]}  Qe2 {[%clk 0:00:02]} 57. Qxe2 {[%clk 0:00:05]}  Rxe2 {[%clk 0:00:03]} 58. Kg1 {[%clk 0:00:05]}  Kf6 {[%clk 0:00:03]} 59. Bf1 {[%clk 0:00:04]}  Rb2 {[%clk 0:00:03]} 60. Bd3 {[%clk 0:00:04]}  Rd2 {[%clk 0:00:02]} 61. Kf1 {[%clk 0:00:04]}  Rb2 {[%clk 0:00:02]} 62. Ke1 {[%clk 0:00:04]}  Rb4 {[%clk 0:00:02]} 63. Rf3 {[%clk 0:00:04]}  Rb2 {[%clk 0:00:02]} 64. Rf2 {[%clk 0:00:04]}  Rxf2 {[%clk 0:00:02]} 65. Kxf2 {[%clk 0:00:04]}  e5 {[%clk 0:00:02]} 66. fxe5+ {[%clk 0:00:04]}  Kxe5 {[%clk 0:00:03]} 67. Kf3 {[%clk 0:00:05]}  f5 {[%clk 0:00:04]} 68. Be2 {[%clk 0:00:04]}  g5 {[%clk 0:00:04]} 69. Bd1 {[%clk 0:00:04]}  g4+ {[%clk 0:00:05]} 70. Kg3 {[%clk 0:00:04]}  Ke4 {[%clk 0:00:05]} 71. Bxg4 {[%clk 0:00:05]}  fxg4 {[%clk 0:00:06]} 72. Kxg4 {[%clk 0:00:05]} 1/2-1/2

[Event "December 12 Late 2023"]
[Site "https://www.chess.com"]
[Date "2023.12.12"]
[Round "11"]
[White "Aghasiyev, Kamal"]
[Black "Zou, Chen"]
[Result "1-0"]
[Board "28"]
[TimeControl "180+1"]
[WhiteFideId "13402854"]
[BlackFideId "8610959"]
[WhiteElo "2602"]
[BlackElo "2751"]
[WhiteTeam "AZE"]
[BlackTeam "CHN"]
[WhiteClock "0:00:13"]
[BlackClock "0:01:42"]

1. d4 {[%clk 0:02:59]}  Nf6 {[%clk 0:02:59]} 2. c4 {[%clk 0:02:59]}  e6 {[%clk 0:02:59]} 3. Nc3 {[%clk 0:02:59]}  Bb4 {[%clk 0:02:58]} 4. Qc2 {[%clk 0:02:56]}  d5 {[%clk 0:02:58]} 5. cxd5 {[%clk 0:02:52]}  exd5 {[%clk 0:02:58]} 6. Bg5 {[%clk 0:02:49]}  c6 {[%clk 0:02:56]} 7. e3 {[%clk 0:02:48]}  O-O {[%clk 0:02:56]} 8. Bd3 {[%clk 0:02:47]}  h6 {[%clk 0:02:56]} 9. Bh4 {[%clk 0:02:46]}  Re8 {[%clk 0:02:56]} 10. Ne2 {[%clk 0:02:43]}  Nbd7 {[%clk 0:02:56]} 11. O-O {[%clk 0:02:43]}  Be7 {[%clk 0:02:56]} 12. Rad1 {[%clk 0:02:05]}  Nf8 {[%clk 0:02:56]} 13. Nc1 {[%clk 0:01:55]}  Bd7 {[%clk 0:02:55]} 14. Nb3 {[%clk 0:01:54]}  Ne6 {[%clk 0:02:54]} 15. f3 {[%clk 0:01:51]}  a5 {[%clk 0:02:52]} 16. a4 {[%clk 0:01:38]}  Qb6 {[%clk 0:02:51]} 17. Kh1 {[%clk 0:01:33]}  Rac8 {[%clk 0:02:49]} 18. e4 {[%clk 0:01:26]}  Nxe4 {[%clk 0:02:42]} 19. Bxe7 {[%clk 0:01:18]}  Nxc3 {[%clk 0:02:41]} 20. Bc5 {[%clk 0:01:17]}  Nxd1 {[%clk 0:02:35]} 21. Bxb6 {[%clk 0:01:14]}  Ne3 {[%clk 0:02:32]} 22. Qd2 {[%clk 0:01:11]}  Nxf1 {[%clk 0:02:33]} 23. Bxf1 {[%clk 0:01:11]}  Ng5 {[%clk 0:02:24]} 24. h4 {[%clk 0:01:08]}  Ne6 {[%clk 0:02:24]} 25. Nxa5 {[%clk 0:01:06]}  Ra8 {[%clk 0:02:23]} 26. b3 {[%clk 0:01:03]}  Bc8 {[%clk 0:02:23]} 27. Bd3 {[%clk 0:00:54]}  Nf8 {[%clk 0:02:23]} 28. Qb4 {[%clk 0:00:41]}  Nd7 {[%clk 0:02:23]} 29. Bc7 {[%clk 0:00:40]}  Nf8 {[%clk 0:02:18]} 30. Nxb7 {[%clk 0:00:24]}  Ra7 {[%clk 0:01:53]} 31. Nd6 {[%clk 0:00:23]}  Re3 {[%clk 0:01:53]} 32. Qb6 {[%clk 0:00:22]}  Ra8 {[%clk 0:01:51]} 33. Bf5 {[%clk 0:00:19]}  Re1+ {[%clk 0:01:50]} 34. Kh2 {[%clk 0:00:19]}  Bxf5 {[%clk 0:01:50]} 35. Nxf5 {[%clk 0:00:19]}  Ne6 {[%clk 0:01:51]} 36. Be5 {[%clk 0:00:18]}  Rc1 {[%clk 0:01:46]} 37. Ne7+ {[%clk 0:00:17]}  Kh8 {[%clk 0:01:46]} 38. Nxc6 {[%clk 0:00:16]}  Rf8 {[%clk 0:01:46]} 39. Nb4 {[%clk 0:00:15]}  Rfc8 {[%clk 0:01:46]} 40. Nxd5 {[%clk 0:00:14]}  Ra1 {[%clk 0:01:46]} 41. Nf4 {[%clk 0:00:14]}  Nf8 {[%clk 0:01:46]} 42. d5 {[%clk 0:00:14]}  Kg8 {[%clk 0:01:44]} 43. Bxa1 {[%clk 0:00:13]}  Rb8 {[%clk 0:01:42]} 44. Qxb8 {[%clk 0:00:13]} 1-0

[Event "December 12 Late 2023"]
[Site "https://www.chess.com"]
[Date "2023.12.12"]
[Round "11"]
[White "Dyachuk, Artem"]
[Black "Espinoza Villanueva, Rodrigo"]
[Result "1/2-1/2"]
[Board "31"]
[TimeControl "180+1"]
[WhiteFideId "34107924"]
[BlackFideId "5140188"]
[WhiteElo "2697"]
[BlackElo "2578"]
[WhiteTeam "UKR"]
[BlackTeam "MEX"]
[WhiteClock "0:00:03"]
[BlackClock "0:00:03"]

1. e4 {[%clk 0:03:00]}  c5 {[%clk 0:02:59]} 2. Nf3 {[%clk 0:03:00]}  Nc6 {[%clk 0:02:59]} 3. Bb5 {[%clk 0:03:01]}  g6 {[%clk 0:02:59]} 4. O-O {[%clk 0:03:00]}  Bg7 {[%clk 0:02:59]} 5. Bxc6 {[%clk 0:03:00]}  dxc6 {[%clk 0:02:58]} 6. h3 {[%clk 0:03:00]}  Nf6 {[%clk 0:02:58]} 7. d3 {[%clk 0:03:00]}  Nd7 {[%clk 0:02:58]} 8. a4 {[%clk 0:03:00]}  e5 {[%clk 0:02:52]} 9. a5 {[%clk 0:02:59]}  Nf8 {[%clk 0:02:52]} 10. Nbd2 {[%clk 0:02:55]}  Ne6 {[%clk 0:02:51]} 11. Nc4 {[%clk 0:02:54]}  Qc7 {[%clk 0:02:48]} 12. Nfd2 {[%clk 0:02:49]}  O-O {[%clk 0:02:44]} 13. Nb3 {[%clk 0:02:49]}  Qe7 {[%clk 0:02:36]} 14. Be3 {[%clk 0:02:47]}  Nd4 {[%clk 0:02:35]} 15. Nbd2 {[%clk 0:02:40]}  f5 {[%clk 0:02:30]} 16. c3 {[%clk 0:02:40]}  Ne6 {[%clk 0:02:29]} 17. f3 {[%clk 0:02:41]}  f4 {[%clk 0:02:17]} 18. Bf2 {[%clk 0:02:40]}  g5 {[%clk 0:02:16]} 19. Rb1 {[%clk 0:02:25]}  h5 {[%clk 0:02:13]} 20. b4 {[%clk 0:02:24]}  cxb4 {[%clk 0:02:07]} 21. cxb4 {[%clk 0:02:25]}  Nd4 {[%clk 0:01:37]} 22. Bxd4 {[%clk 0:02:21]}  exd4 {[%clk 0:01:38]} 23. e5 {[%clk 0:02:22]}  g4 {[%clk 0:01:32]} 24. fxg4 {[%clk 0:02:21]}  hxg4 {[%clk 0:01:32]} 25. hxg4 {[%clk 0:02:21]}  Qg5 {[%clk 0:01:29]} 26. Ne4 {[%clk 0:02:14]}  Qxg4 {[%clk 0:01:29]} 27. Qxg4 {[%clk 0:02:13]}  Bxg4 {[%clk 0:01:30]} 28. Rf2 {[%clk 0:02:13]}  Rae8 {[%clk 0:01:23]} 29. Rbf1 {[%clk 0:02:11]}  Bxe5 {[%clk 0:01:20]} 30. Nxe5 {[%clk 0:02:10]}  Rxe5 {[%clk 0:01:20]} 31. Rxf4 {[%clk 0:02:11]}  Rxf4 {[%clk 0:01:20]} 32. Rxf4 {[%clk 0:02:12]}  Be2 {[%clk 0:01:11]} 33. Nf2 {[%clk 0:02:06]}  Rd5 {[%clk 0:01:05]} 34. Re4 {[%clk 0:02:06]}  Bh5 {[%clk 0:01:00]} 35. Re7 {[%clk 0:02:03]}  Rb5 {[%clk 0:00:56]} 36. a6 {[%clk 0:02:03]}  bxa6 {[%clk 0:00:51]} 37. Rxa7 {[%clk 0:02:03]}  Rxb4 {[%clk 0:00:50]} 38. Ne4 {[%clk 0:02:01]}  Bf7 {[%clk 0:00:48]} 39. Rxa6 {[%clk 0:01:58]}  Rb3 {[%clk 0:00:39]} 40. Nc5 {[%clk 0:01:53]}  Rb1+ {[%clk 0:00:36]} 41. Kh2 {[%clk 0:01:51]}  Bd5 {[%clk 0:00:36]} 42. g4 {[%clk 0:01:44]}  Rc1 {[%clk 0:00:35]} 43. Nd7 {[%clk 0:01:41]}  Re1 {[%clk 0:00:27]} 44. Ra7 {[%clk 0:01:33]}  Re3 {[%clk 0:00:21]} 45. Nf6+ {[%clk 0:01:26]}  Kf8 {[%clk 0:00:20]} 46. g5 {[%clk 0:01:27]}  Rxd3 {[%clk 0:00:19]} 47. g6 {[%clk 0:01:22]}  Rd2+ {[%clk 0:00:16]} 48. Kh3 {[%clk 0:01:22]}  Rg2 {[%clk 0:00:16]} 49. Nh7+ {[%clk 0:01:10]}  Kg8 {[%clk 0:00:15]} 50. Nf6+ {[%clk 0:01:09]}  Kf8 {[%clk 0:00:16]} 51. Nxd5 {[%clk 0:01:04]}  Rxg6 {[%clk 0:00:16]} 52. Nf4 {[%clk 0:01:04]}  Rf6 {[%clk 0:00:15]} 53. Kg4 {[%clk 0:01:03]}  Rf7 {[%clk 0:00:15]} 54. Ne6+ {[%clk 0:00:52]}  Ke8 {[%clk 0:00:14]} 55. Ra8+ {[%clk 0:00:52]}  Ke7 {[%clk 0:00:14]} 56. Nxd4 {[%clk 0:00:53]}  Kd6 {[%clk 0:00:14]} 57. Nf5+ {[%clk 0:00:47]}  Kd5 {[%clk 0:00:12]} 58. Kf4 {[%clk 0:00:45]}  c5 {[%clk 0:00:12]} 59. Rd8+ {[%clk 0:00:44]}  Kc4 {[%clk 0:00:11]} 60. Ke4 {[%clk 0:00:43]}  Kb3 {[%clk 0:00:10]} 61. Ne3 {[%clk 0:00:33]}  c4 {[%clk 0:00:09]} 62. Rb8+ {[%clk 0:00:32]}  Kc3 {[%clk 0:00:09]} 63. Nd5+ {[%clk 0:00:32]}  Kc2 {[%clk 0:00:09]} 64. Kd4 {[%clk 0:00:32]}  Rd7 {[%clk 0:00:07]} 65. Rb4 {[%clk 0:00:25]}  c3 {[%clk 0:00:07]} 66. Kc4 {[%clk 0:00:20]}  Kd2 {[%clk 0:00:06]} 67. Nb6 {[%clk 0:00:03]}  c2 {[%clk 0:00:06]} 68. Nxd7 {[%clk 0:00:02]}  c1=Q+ {[%clk 0:00:06]} 69. Kd5 {[%clk 0:00:03]}  Qc3 {[%clk 0:00:06]} 70. Rb5 {[%clk 0:00:02]}  Qd3+ {[%clk 0:00:05]} 71. Kc6 {[%clk 0:00:03]}  Qxb5+ {[%clk 0:00:03]} 72. Kxb5 {[%clk 0:00:03]} 1/2-1/2

[Event "December 12 Late 2023"]
[Site "https://www.chess.com"]
[Date "2023.12.12"]
[Round "11"]
[White "Kopczynski, Michal"]
[Black "Aldokhin, Ivan"]
[Result "1-0"]
[Board "32"]
[TimeControl "180+1"]
[WhiteFideId "1124200"]
[BlackFideId "24115720"]
[WhiteElo "2535"]
[BlackElo "2691"]
[WhiteTeam "POL"]
[BlackTeam "RUS"]
[WhiteClock "0:01:06"]
[BlackClock "0:00:58"]

1. e4 {[%clk 0:03:00]}  c5 {[%clk 0:02:51]} 2. d4 {[%clk 0:03:00]}  cxd4 {[%clk 0:02:51]} 3. c3 {[%clk 0:03:01]}  d3 {[%clk 0:02:51]} 4. Bxd3 {[%clk 0:03:01]}  Nc6 {[%clk 0:02:52]} 5. f4 {[%clk 0:03:02]}  d5 {[%clk 0:02:51]} 6. e5 {[%clk 0:03:01]}  Nh6 {[%clk 0:02:51]} 7. Nf3 {[%clk 0:03:01]}  Bf5 {[%clk 0:02:45]} 8. O-O {[%clk 0:03:02]}  e6 {[%clk 0:02:44]} 9. Kh1 {[%clk 0:03:01]}  Bc5 {[%clk 0:02:43]} 10. h3 {[%clk 0:02:53]}  Bxd3 {[%clk 0:02:36]} 11. Qxd3 {[%clk 0:02:54]}  Nf5 {[%clk 0:02:37]} 12. Kh2 {[%clk 0:02:53]}  h5 {[%clk 0:02:37]} 13. Bd2 {[%clk 0:02:44]}  Nh6 {[%clk 0:02:36]} 14. Ng5 {[%clk 0:02:41]}  Qc7 {[%clk 0:02:27]} 15. Qe2 {[%clk 0:02:36]}  g6 {[%clk 0:02:20]} 16. Be3 {[%clk 0:02:34]}  Ne7 {[%clk 0:02:17]} 17. Bxc5 {[%clk 0:02:29]}  Qxc5 {[%clk 0:02:17]} 18. Nd2 {[%clk 0:02:29]}  Nef5 {[%clk 0:02:01]} 19. Nb3 {[%clk 0:02:29]}  Qb6 {[%clk 0:01:52]} 20. Qf2 {[%clk 0:02:12]}  Qxf2 {[%clk 0:01:48]} 21. Rxf2 {[%clk 0:02:13]}  Ke7 {[%clk 0:01:49]} 22. Rd2 {[%clk 0:02:05]}  Rhc8 {[%clk 0:01:43]} 23. Nh7 {[%clk 0:01:48]}  a5 {[%clk 0:01:41]} 24. Nf6 {[%clk 0:01:47]}  a4 {[%clk 0:01:41]} 25. Nc1 {[%clk 0:01:36]}  a3 {[%clk 0:01:41]} 26. Ne2 {[%clk 0:01:34]}  h4 {[%clk 0:01:38]} 27. bxa3 {[%clk 0:01:31]}  Ne3 {[%clk 0:01:34]} 28. Rb1 {[%clk 0:01:29]}  Rc7 {[%clk 0:01:33]} 29. Rdb2 {[%clk 0:01:19]}  Rb8 {[%clk 0:01:21]} 30. a4 {[%clk 0:01:17]}  Nhf5 {[%clk 0:01:19]} 31. a5 {[%clk 0:01:16]}  Nc4 {[%clk 0:01:17]} 32. Rb5 {[%clk 0:01:14]}  Rbc8 {[%clk 0:01:10]} 33. Rxb7 {[%clk 0:01:11]}  Nxa5 {[%clk 0:01:10]} 34. Rxc7+ {[%clk 0:01:09]}  Rxc7 {[%clk 0:01:10]} 35. Rb8 {[%clk 0:01:08]}  Ng7 {[%clk 0:01:03]} 36. Rg8 {[%clk 0:01:07]}  Rb7 {[%clk 0:01:00]} 37. Rxg7 {[%clk 0:01:07]}  Rb2 {[%clk 0:00:58]} 38. Rg8 {[%clk 0:01:06]} 1-0